[Event "*** Titled Tuesday Blitz"]
[Site "Chess.com"]
[Date "2021.02.02"]
[Round "3"]
[White "QuintilianoR"]
[Black "PelinGorki"]
[Result "0-1"]
[WhiteElo "2700"]
[BlackElo "2453"]
[TimeControl "180+1"]
[EndTime "10:31:12 PST"]
[Termination "PelinGorki won on time"]

1. d4 {[%clk 0:03:00.9]} 1... Nf6 {[%clk 0:02:59.3]} 2. c4 {[%clk 0:03:01.2]}
2... e5 {[%clk 0:02:59.2]} 3. dxe5 {[%clk 0:03:00.4]} 3... Ng4 {[%clk
0:02:59.3]} 4. Bf4 {[%clk 0:02:58.8]} 4... Nc6 {[%clk 0:02:59.6]} 5. Nf3 {[%clk
0:02:58]} 5... Bb4+ {[%clk 0:03:00.1]} 6. Nc3 {[%clk 0:02:57.4]} 6... Qe7 {[%clk
0:03:00.1]} 7. Qd5 {[%clk 0:02:57.9]} 7... f6 {[%clk 0:02:59.4]} 8. exf6 {[%clk
0:02:57.9]} 8... Bxc3+ {[%clk 0:02:59.6]} 9. bxc3 {[%clk 0:02:57.4]} 9... Nxf6
{[%clk 0:03:00.5]} 10. Qd3 {[%clk 0:02:57.2]} 10... d6 {[%clk 0:02:58.9]} 11. e3
{[%clk 0:02:54.9]} 11... O-O {[%clk 0:02:59.3]} 12. Be2 {[%clk 0:02:55.2]} 12...
Ne4 {[%clk 0:02:52.4]} 13. Nd4 {[%clk 0:02:35.6]} 13... Kh8 {[%clk 0:02:27.6]}
14. O-O {[%clk 0:02:27.7]} 14... Nc5 {[%clk 0:02:11]} 15. Qc2 {[%clk 0:02:25.7]}
15... Ne5 {[%clk 0:01:58.5]} 16. a4 {[%clk 0:01:39.6]} 16... Bd7 {[%clk
0:01:38.4]} 17. a5 {[%clk 0:01:37.7]} 17... a6 {[%clk 0:01:13.8]} 18. Bg3 {[%clk
0:01:36.2]} 18... Rf7 {[%clk 0:01:02.6]} 19. Rfd1 {[%clk 0:00:59.1]} 19... Raf8
{[%clk 0:01:00.8]} 20. Qb1 {[%clk 0:00:48.5]} 20... Qf6 {[%clk 0:00:33.4]} 21.
Rd2 {[%clk 0:00:39.7]} 21... Ng4 {[%clk 0:00:25]} 22. Bf3 {[%clk 0:00:33.7]}
22... c6 {[%clk 0:00:16]} 23. Bxg4 {[%clk 0:00:07]} 23... Bxg4 {[%clk
0:00:16.9]} 24. Nb3 {[%clk 0:00:05.3]} 24... Bf5 {[%clk 0:00:13.4]} 25. Qd1
{[%clk 0:00:03.9]} 25... Ne4 {[%clk 0:00:13.8]} 26. Bxd6 {[%clk 0:00:01.7]}
26... Nxd2 {[%clk 0:00:11]} 27. Qxd2 {[%clk 0:00:02.1]} 27... Rd8 {[%clk
0:00:10]} 28. c5 {[%clk 0:00:02.7]} 28... Be6 {[%clk 0:00:08.2]} 29. Nd4 {[%clk
0:00:03.1]} 29... Bd5 {[%clk 0:00:08.3]} 30. Rb1 {[%clk 0:00:03.4]} 30... Rdd7
{[%clk 0:00:08]} 0-1

[Event "*** Titled Tuesday Blitz"]
[Site "Chess.com"]
[Date "2021.02.02"]
[Round "3"]
[White "MumLookatMeNow"]
[Black "Ariadna_Atreides"]
[Result "1-0"]
[WhiteElo "2484"]
[BlackElo "2167"]
[TimeControl "180+1"]
[EndTime "10:31:12 PST"]
[Termination "MumLookatMeNow won on time"]

1. e4 {[%clk 0:03:00.9]} 1... c5 {[%clk 0:02:59]} 2. d4 {[%clk 0:03:00.2]} 2...
cxd4 {[%clk 0:02:58.2]} 3. c3 {[%clk 0:02:59.1]} 3... d3 {[%clk 0:02:58.7]} 4.
Bxd3 {[%clk 0:02:58.7]} 4... Nc6 {[%clk 0:02:58.8]} 5. c4 {[%clk 0:02:59]} 5...
g6 {[%clk 0:02:58.2]} 6. Nf3 {[%clk 0:02:58.8]} 6... Bg7 {[%clk 0:02:57.8]} 7.
O-O {[%clk 0:02:59.1]} 7... d6 {[%clk 0:02:57.9]} 8. h3 {[%clk 0:02:59.5]} 8...
Nf6 {[%clk 0:02:57.3]} 9. Nc3 {[%clk 0:02:59.8]} 9... O-O {[%clk 0:02:57.3]} 10.
Be3 {[%clk 0:02:59.7]} 10... Nd7 {[%clk 0:02:48.1]} 11. Rc1 {[%clk 0:02:59.6]}
11... Nde5 {[%clk 0:02:47.3]} 12. Be2 {[%clk 0:02:58.2]} 12... Nxf3+ {[%clk
0:02:45]} 13. Bxf3 {[%clk 0:02:59.1]} 13... Be6 {[%clk 0:02:33.6]} 14. Be2
{[%clk 0:02:58.8]} 14... Rc8 {[%clk 0:02:30]} 15. Qd2 {[%clk 0:02:58.4]} 15...
Re8 {[%clk 0:01:43.5]} 16. b3 {[%clk 0:02:56.9]} 16... a6 {[%clk 0:01:42.5]} 17.
f4 {[%clk 0:02:50.1]} 17... Qa5 {[%clk 0:01:37.5]} 18. Kh1 {[%clk 0:02:42.9]}
18... Nb8 {[%clk 0:01:17]} 19. Nd5 {[%clk 0:02:14.9]} 19... Qxd2 {[%clk
0:01:12.3]} 20. Bxd2 {[%clk 0:02:15.8]} 20... Bxd5 {[%clk 0:01:09.1]} 21. cxd5
{[%clk 0:02:03.9]} 21... Nd7 {[%clk 0:01:10]} 22. Bg4 {[%clk 0:01:58.7]} 22...
Rxc1 {[%clk 0:00:51.5]} 23. Rxc1 {[%clk 0:01:59.6]} 23... Nc5 {[%clk 0:00:35.5]}
24. Bf3 {[%clk 0:01:57.4]} 24... e6 {[%clk 0:00:31.8]} 25. b4 {[%clk 0:01:16.8]}
25... Nd3 {[%clk 0:00:31.6]} 26. Rc7 {[%clk 0:01:16.4]} 26... exd5 {[%clk
0:00:32]} 27. exd5 {[%clk 0:01:16.7]} 27... Bh6 {[%clk 0:00:26]} 28. g3 {[%clk
0:01:07.6]} 28... Nf2+ {[%clk 0:00:18]} 29. Kg2 {[%clk 0:01:06.6]} 29... Ne4
{[%clk 0:00:18.5]} 30. Bxe4 {[%clk 0:00:57.9]} 30... Rxe4 {[%clk 0:00:17.6]} 31.
Kf3 {[%clk 0:00:57.9]} 31... Rd4 {[%clk 0:00:15.2]} 32. Ke3 {[%clk 0:00:57.8]}
32... Rxd5 {[%clk 0:00:14.8]} 33. Rxb7 {[%clk 0:00:55.3]} 33... Rb5 {[%clk
0:00:09.8]} 34. Rxb5 {[%clk 0:00:46.8]} 34... axb5 {[%clk 0:00:09.3]} 35. Kd4
{[%clk 0:00:46]} 35... Bf8 {[%clk 0:00:05.5]} 36. Kd5 {[%clk 0:00:45.1]} 36...
f5 {[%clk 0:00:04.8]} 37. Kc6 {[%clk 0:00:41.2]} 37... Kf7 {[%clk 0:00:04.4]}
38. Kxb5 {[%clk 0:00:41.3]} 38... d5 {[%clk 0:00:03]} 39. Kc6 {[%clk 0:00:36.1]}
1-0

[Event "*** Titled Tuesday Blitz"]
[Site "Chess.com"]
[Date "2021.02.02"]
[Round "3"]
[White "dianamirza"]
[Black "Walter_White_Poland"]
[Result "0-1"]
[WhiteElo "1921"]
[BlackElo "2290"]
[TimeControl "180+1"]
[EndTime "10:31:13 PST"]
[Termination "Walter_White_Poland won on time"]

1. d4 {[%clk 0:03:00.9]} 1... Nf6 {[%clk 0:02:59.2]} 2. Nf3 {[%clk 0:02:59.3]}
2... c5 {[%clk 0:02:58.7]} 3. e3 {[%clk 0:02:58.4]} 3... b6 {[%clk 0:02:58.1]}
4. Bd3 {[%clk 0:02:57.6]} 4... Bb7 {[%clk 0:02:58]} 5. Nbd2 {[%clk 0:02:54.3]}
5... e6 {[%clk 0:02:53.9]} 6. O-O {[%clk 0:02:53.9]} 6... g6 {[%clk 0:02:53.7]}
7. b3 {[%clk 0:02:54.4]} 7... Bg7 {[%clk 0:02:53.4]} 8. Bb2 {[%clk 0:02:54.7]}
8... O-O {[%clk 0:02:53.3]} 9. e4 {[%clk 0:02:52.1]} 9... d6 {[%clk 0:02:48.7]}
10. Qe2 {[%clk 0:02:48.4]} 10... Qe7 {[%clk 0:02:35.5]} 11. a4 {[%clk
0:02:33.2]} 11... Nbd7 {[%clk 0:02:31.6]} 12. Nc4 {[%clk 0:02:29.8]} 12... Bxe4
{[%clk 0:02:04]} 13. Bxe4 {[%clk 0:02:23.7]} 13... Nxe4 {[%clk 0:02:04]} 14.
Qxe4 {[%clk 0:02:21.8]} 14... d5 {[%clk 0:02:04.1]} 15. Qe2 {[%clk 0:02:11.7]}
15... dxc4 {[%clk 0:02:04.3]} 16. Qxc4 {[%clk 0:02:03.8]} 16... Rac8 {[%clk
0:02:04]} 17. Qd3 {[%clk 0:01:55]} 17... Rfd8 {[%clk 0:01:54.9]} 18. Ba3 {[%clk
0:01:42.3]} 18... Ne5 {[%clk 0:01:47.3]} 19. Nxe5 {[%clk 0:01:38.2]} 19... Bxe5
{[%clk 0:01:47.3]} 20. c3 {[%clk 0:01:30.1]} 20... Qc7 {[%clk 0:01:22.9]} 21.
Rac1 {[%clk 0:00:55.6]} 21... Bxh2+ {[%clk 0:01:21.1]} 22. Kh1 {[%clk
0:00:54.7]} 22... Bf4 {[%clk 0:01:18.4]} 23. Rce1 {[%clk 0:00:35.4]} 23... cxd4
{[%clk 0:01:09.2]} 24. cxd4 {[%clk 0:00:23.8]} 24... Qc3 {[%clk 0:00:56.3]} 25.
Qa6 {[%clk 0:00:12.7]} 25... Rd7 {[%clk 0:00:20]} 26. Re4 {[%clk 0:00:09]} 26...
Bg5 {[%clk 0:00:14.8]} 27. f4 {[%clk 0:00:02.8]} 27... Qc6 {[%clk 0:00:02.9]}
0-1

[Event "*** Titled Tuesday Blitz"]
[Site "Chess.com"]
[Date "2021.02.02"]
[Round "3"]
[White "DrCeltic"]
[Black "esrosenberg"]
[Result "1-0"]
[WhiteElo "2484"]
[BlackElo "2181"]
[TimeControl "180+1"]
[EndTime "10:31:15 PST"]
[Termination "DrCeltic won on time"]

1. e4 {[%clk 0:02:59]} 1... e6 {[%clk 0:03:00.2]} 2. d4 {[%clk 0:02:59.1]} 2...
d5 {[%clk 0:03:00.8]} 3. Nd2 {[%clk 0:02:59.2]} 3... c5 {[%clk 0:03:00.5]} 4.
exd5 {[%clk 0:02:59.3]} 4... Qxd5 {[%clk 0:03:00.5]} 5. Ngf3 {[%clk 0:02:59.6]}
5... cxd4 {[%clk 0:02:56.9]} 6. Bc4 {[%clk 0:02:59.7]} 6... Qd6 {[%clk
0:02:57.2]} 7. O-O {[%clk 0:03:00.2]} 7... Nf6 {[%clk 0:02:57.4]} 8. Nb3 {[%clk
0:03:00.7]} 8... Nc6 {[%clk 0:02:57.3]} 9. Nbxd4 {[%clk 0:03:01.4]} 9... Nxd4
{[%clk 0:02:57.4]} 10. Qxd4 {[%clk 0:03:02.3]} 10... Qxd4 {[%clk 0:02:56.4]} 11.
Nxd4 {[%clk 0:03:03.2]} 11... Bc5 {[%clk 0:02:56.9]} 12. Nb5 {[%clk 0:02:55.4]}
12... O-O {[%clk 0:02:55.5]} 13. Bf4 {[%clk 0:02:51]} 13... Bd7 {[%clk
0:02:50.3]} 14. Rad1 {[%clk 0:02:41.5]} 14... Rac8 {[%clk 0:02:37.1]} 15. Nd6
{[%clk 0:02:39.7]} 15... Bxd6 {[%clk 0:02:33.2]} 16. Bxd6 {[%clk 0:02:39.9]}
16... Rxc4 {[%clk 0:02:32.2]} 17. Bxf8 {[%clk 0:02:40.3]} 17... Kxf8 {[%clk
0:02:32.7]} 18. c3 {[%clk 0:02:40.7]} 18... Ke7 {[%clk 0:02:26]} 19. f3 {[%clk
0:02:39.6]} 19... Nd5 {[%clk 0:02:22.1]} 20. Kf2 {[%clk 0:02:37.8]} 20... Rh4
{[%clk 0:02:04.3]} 21. Rfe1 {[%clk 0:02:35]} 21... Bc6 {[%clk 0:01:49.3]} 22.
Kg3 {[%clk 0:02:35.1]} 22... g5 {[%clk 0:01:45.8]} 23. h3 {[%clk 0:02:26.3]}
23... Ra4 {[%clk 0:01:28.6]} 24. Ra1 {[%clk 0:02:22.1]} 24... h5 {[%clk
0:01:21.5]} 25. b3 {[%clk 0:02:21.5]} 25... Rf4 {[%clk 0:01:17.4]} 26. c4 {[%clk
0:02:21.2]} 26... Nb4 {[%clk 0:01:12.1]} 27. Re2 {[%clk 0:02:18.9]} 27... Nd3
{[%clk 0:00:58.1]} 28. Rd1 {[%clk 0:02:14.2]} 28... h4+ {[%clk 0:00:49]} 29. Kh2
{[%clk 0:02:12.6]} 29... Nc5 {[%clk 0:00:45.6]} 30. Re5 {[%clk 0:02:08]} 30...
Rf5 {[%clk 0:00:38.5]} 31. Rde1 {[%clk 0:01:55.8]} 31... Kf6 {[%clk 0:00:31.7]}
32. R5e3 {[%clk 0:01:49.3]} 32... a5 {[%clk 0:00:28.3]} 33. a3 {[%clk
0:01:48.5]} 33... a4 {[%clk 0:00:23.6]} 34. b4 {[%clk 0:01:47.4]} 34... Nb3
{[%clk 0:00:23.8]} 35. Rd1 {[%clk 0:01:42.6]} 35... Re5 {[%clk 0:00:19.1]} 36.
Rxe5 {[%clk 0:01:35.4]} 36... Kxe5 {[%clk 0:00:20]} 37. b5 {[%clk 0:01:35.9]}
37... Bxf3 {[%clk 0:00:15.7]} 38. gxf3 {[%clk 0:01:35.5]} 38... Nd4 {[%clk
0:00:10.7]} 39. Kg2 {[%clk 0:01:33.9]} 39... b6 {[%clk 0:00:10.8]} 40. Re1+
{[%clk 0:01:30]} 40... Kd6 {[%clk 0:00:09.9]} 41. Rd1 {[%clk 0:01:23.2]} 41...
Kc5 {[%clk 0:00:10]} 42. Rc1 {[%clk 0:01:20.9]} 42... f5 {[%clk 0:00:09.8]} 43.
Kf2 {[%clk 0:01:18.7]} 43... e5 {[%clk 0:00:08.5]} 44. Ke3 {[%clk 0:01:15.2]}
44... Nb3 {[%clk 0:00:07.5]} 45. Rc2 {[%clk 0:01:10.1]} 45... Nd4 {[%clk
0:00:07.3]} 46. Rc3 {[%clk 0:01:09.5]} 46... Nb3 {[%clk 0:00:06]} 47. Kd3 {[%clk
0:01:06.6]} 47... Na5 {[%clk 0:00:04.3]} 48. Rc2 {[%clk 0:01:01.2]} 48... Nb3
{[%clk 0:00:03.2]} 49. Rg2 {[%clk 0:01:00.5]} 1-0

[Event "*** Titled Tuesday Blitz"]
[Site "Chess.com"]
[Date "2021.02.02"]
[Round "3"]
[White "Abdimalik_Abdisalimov"]
[Black "Khnykin_Nikolay"]
[Result "1-0"]
[WhiteElo "2337"]
[BlackElo "2097"]
[TimeControl "180+1"]
[EndTime "10:31:15 PST"]
[Termination "Abdimalik_Abdisalimov won on time"]

1. d4 {[%clk 0:03:00.9]} 1... Nf6 {[%clk 0:02:58.2]} 2. c4 {[%clk 0:03:01.2]}
2... c5 {[%clk 0:02:58.3]} 3. d5 {[%clk 0:03:00.4]} 3... b5 {[%clk 0:02:58]} 4.
cxb5 {[%clk 0:03:00.2]} 4... a6 {[%clk 0:02:57.3]} 5. bxa6 {[%clk 0:02:59.7]}
5... Bxa6 {[%clk 0:02:57.2]} 6. Nc3 {[%clk 0:03:00.4]} 6... e6 {[%clk
0:02:53.8]} 7. dxe6 {[%clk 0:02:55.7]} 7... fxe6 {[%clk 0:02:52.9]} 8. e4 {[%clk
0:02:52]} 8... Bxf1 {[%clk 0:02:51.2]} 9. Kxf1 {[%clk 0:02:51.2]} 9... d6 {[%clk
0:02:43.9]} 10. Nf3 {[%clk 0:02:49.3]} 10... Be7 {[%clk 0:02:42.1]} 11. g3
{[%clk 0:02:48.7]} 11... O-O {[%clk 0:02:39.9]} 12. Kg2 {[%clk 0:02:49]} 12...
Nc6 {[%clk 0:02:36.5]} 13. Qb3 {[%clk 0:02:45]} 13... Qd7 {[%clk 0:02:22.5]} 14.
Ng5 {[%clk 0:02:27.4]} 14... Nd4 {[%clk 0:02:18]} 15. Qc4 {[%clk 0:02:19.5]}
15... Ng4 {[%clk 0:01:59.3]} 16. Rf1 {[%clk 0:01:59.4]} 16... h6 {[%clk
0:01:40.5]} 17. Nh3 {[%clk 0:01:44.8]} 17... Nc2 {[%clk 0:01:06.9]} 18. Rb1
{[%clk 0:01:37.5]} 18... Rf7 {[%clk 0:00:42.8]} 19. Qd3 {[%clk 0:01:27.6]} 19...
Nd4 {[%clk 0:00:36.3]} 20. Be3 {[%clk 0:01:19]} 20... Rf3 {[%clk 0:00:18.9]} 21.
Ng1 {[%clk 0:01:10.4]} 21... Rf7 {[%clk 0:00:15.2]} 22. Bxd4 {[%clk 0:01:08]}
22... cxd4 {[%clk 0:00:15.1]} 23. Qxd4 {[%clk 0:01:07.4]} 23... Raf8 {[%clk
0:00:15.1]} 24. f3 {[%clk 0:01:02.1]} 24... Ne5 {[%clk 0:00:14.1]} 25. Rbd1
{[%clk 0:00:58.4]} 25... Nc6 {[%clk 0:00:12]} 26. Qd2 {[%clk 0:00:55.1]} 26...
Rd8 {[%clk 0:00:09.8]} 27. f4 {[%clk 0:00:53]} 27... Rdf8 {[%clk 0:00:09.2]} 28.
Nf3 {[%clk 0:00:50.7]} 28... Qa7 {[%clk 0:00:07.1]} 29. Nb5 {[%clk 0:00:47.2]}
29... Qb6 {[%clk 0:00:05.6]} 30. Nxd6 {[%clk 0:00:45.3]} 30... Rd8 {[%clk
0:00:04.7]} 31. e5 {[%clk 0:00:41.4]} 31... Bxd6 {[%clk 0:00:04.8]} 32. exd6
{[%clk 0:00:41.1]} 32... Rfd7 {[%clk 0:00:05]} 33. Rf2 {[%clk 0:00:30]} 33...
Rxd6 {[%clk 0:00:05.1]} 34. Qxd6 {[%clk 0:00:28.8]} 34... Rxd6 {[%clk
0:00:04.9]} 35. Rxd6 {[%clk 0:00:29.7]} 35... Qc7 {[%clk 0:00:03.1]} 36. Rxe6
{[%clk 0:00:28.7]} 36... Qd7 {[%clk 0:00:01.5]} 37. Rfe2 {[%clk 0:00:28.3]} 1-0

[Event "*** Titled Tuesday Blitz"]
[Site "Chess.com"]
[Date "2021.02.02"]
[Round "3"]
[White "glebus008"]
[Black "dolynachess"]
[Result "1-0"]
[WhiteElo "2271"]
[BlackElo "2418"]
[TimeControl "180+1"]
[EndTime "10:31:16 PST"]
[Termination "glebus008 won by checkmate"]

1. e4 {[%clk 0:03:00.9]} 1... c5 {[%clk 0:02:57.6]} 2. Nf3 {[%clk 0:03:00.2]}
2... d6 {[%clk 0:02:57.9]} 3. d4 {[%clk 0:02:59.2]} 3... cxd4 {[%clk 0:02:58.8]}
4. Qxd4 {[%clk 0:02:59.7]} 4... Nf6 {[%clk 0:02:59.7]} 5. Nc3 {[%clk 0:02:58.1]}
5... a6 {[%clk 0:02:56.4]} 6. Bc4 {[%clk 0:02:57.6]} 6... Nc6 {[%clk 0:02:56]}
7. Qd3 {[%clk 0:02:57.5]} 7... g6 {[%clk 0:02:51.5]} 8. Bg5 {[%clk 0:02:46.2]}
8... Bg7 {[%clk 0:02:50.2]} 9. O-O {[%clk 0:02:42.9]} 9... O-O {[%clk
0:02:49.8]} 10. Rfe1 {[%clk 0:02:42.4]} 10... Bg4 {[%clk 0:02:48.5]} 11. Bb3
{[%clk 0:02:33.5]} 11... Qa5 {[%clk 0:02:46.7]} 12. Bd2 {[%clk 0:02:26]} 12...
Bxf3 {[%clk 0:02:37.4]} 13. Qxf3 {[%clk 0:02:22.5]} 13... Rac8 {[%clk 0:02:34]}
14. Rad1 {[%clk 0:02:19.5]} 14... Ne5 {[%clk 0:02:29.4]} 15. Qh3 {[%clk
0:02:16.8]} 15... Nc4 {[%clk 0:02:24.9]} 16. Nd5 {[%clk 0:02:11.2]} 16... Nxd2
{[%clk 0:01:42.2]} 17. Nxe7+ {[%clk 0:02:09.2]} 17... Kh8 {[%clk 0:01:41.8]} 18.
Nxc8 {[%clk 0:02:07.5]} 18... Nfxe4 {[%clk 0:01:18.8]} 19. Ne7 {[%clk
0:01:46.8]} 19... Bd4 {[%clk 0:00:27.4]} 20. Re2 {[%clk 0:01:33.7]} 20... Nxf2
{[%clk 0:00:19.8]} 21. Rxf2 {[%clk 0:01:34.6]} 21... Bxf2+ {[%clk 0:00:12.3]}
22. Kxf2 {[%clk 0:01:33.2]} 22... Qc5+ {[%clk 0:00:11.7]} 23. Qe3 {[%clk
0:01:25.5]} 23... Qxe3+ {[%clk 0:00:11.6]} 24. Kxe3 {[%clk 0:01:25]} 24... Nxb3
{[%clk 0:00:12.5]} 25. axb3 {[%clk 0:01:22.6]} 25... Re8 {[%clk 0:00:12.4]} 26.
Rxd6 {[%clk 0:01:20.8]} 26... Rxe7+ {[%clk 0:00:12.7]} 27. Kd2 {[%clk
0:01:17.4]} 27... Kg7 {[%clk 0:00:12.9]} 28. Rb6 {[%clk 0:01:16.7]} 28... f5
{[%clk 0:00:11.1]} 29. c4 {[%clk 0:01:14.9]} 29... Kh6 {[%clk 0:00:11]} 30. c5
{[%clk 0:01:13.7]} 30... Kg5 {[%clk 0:00:11.3]} 31. b4 {[%clk 0:01:08.4]} 31...
Kf4 {[%clk 0:00:09.4]} 32. b5 {[%clk 0:01:07.8]} 32... axb5 {[%clk 0:00:07.9]}
33. Rxb5 {[%clk 0:01:08.7]} 33... g5 {[%clk 0:00:04.6]} 34. b4 {[%clk
0:01:08.2]} 34... h5 {[%clk 0:00:03.7]} 35. Rb6 {[%clk 0:01:07.8]} 35... h4
{[%clk 0:00:03.4]} 36. h3 {[%clk 0:01:06.7]} 36... Kg3 {[%clk 0:00:02.5]} 37.
Rg6 {[%clk 0:01:06.6]} 37... g4 {[%clk 0:00:02.5]} 38. hxg4 {[%clk 0:01:06.8]}
38... fxg4 {[%clk 0:00:03.4]} 39. Kd3 {[%clk 0:01:05.8]} 39... Re1 {[%clk
0:00:01.2]} 40. b5 {[%clk 0:00:57.4]} 40... Rg1 {[%clk 0:00:02.1]} 41. c6 {[%clk
0:00:53]} 41... Rxg2 {[%clk 0:00:03]} 42. cxb7 {[%clk 0:00:50.8]} 42... h3
{[%clk 0:00:03.5]} 43. b8=Q+ {[%clk 0:00:50.2]} 43... Kf2 {[%clk 0:00:03.8]} 44.
Qf8+ {[%clk 0:00:46.2]} 44... Kg1 {[%clk 0:00:04.7]} 45. Rf6 {[%clk 0:00:42]}
45... h2 {[%clk 0:00:05.6]} 46. Rf1# {[%clk 0:00:41.5]} 1-0

[Event "*** Titled Tuesday Blitz"]
[Site "Chess.com"]
[Date "2021.02.02"]
[Round "3"]
[White "kuban1991"]
[Black "remi04"]
[Result "1-0"]
[WhiteElo "2822"]
[BlackElo "2603"]
[TimeControl "180+1"]
[EndTime "10:31:17 PST"]
[Termination "kuban1991 won on time"]

1. Nf3 {[%clk 0:03:00.9]} 1... Nf6 {[%clk 0:02:59.5]} 2. g3 {[%clk 0:03:00.9]}
2... g6 {[%clk 0:02:59.6]} 3. Bg2 {[%clk 0:03:01.8]} 3... d5 {[%clk 0:02:59.7]}
4. O-O {[%clk 0:03:02.7]} 4... Bg7 {[%clk 0:03:00.3]} 5. d4 {[%clk 0:02:58.1]}
5... O-O {[%clk 0:03:00.3]} 6. Nbd2 {[%clk 0:02:58.6]} 6... Ne4 {[%clk
0:02:51.1]} 7. e3 {[%clk 0:02:54.5]} 7... c5 {[%clk 0:02:44.2]} 8. c3 {[%clk
0:02:48]} 8... Nxd2 {[%clk 0:02:42.8]} 9. Bxd2 {[%clk 0:02:47.9]} 9... b6 {[%clk
0:02:39.7]} 10. Ne5 {[%clk 0:02:37.9]} 10... f6 {[%clk 0:02:18.8]} 11. Nd3
{[%clk 0:02:37.4]} 11... c4 {[%clk 0:02:16.6]} 12. Nf4 {[%clk 0:02:35.7]} 12...
e6 {[%clk 0:02:07.3]} 13. e4 {[%clk 0:02:31.5]} 13... g5 {[%clk 0:01:58.6]} 14.
Nh5 {[%clk 0:02:29.3]} 14... Bb7 {[%clk 0:01:46]} 15. e5 {[%clk 0:02:11.5]}
15... fxe5 {[%clk 0:01:41.2]} 16. Nxg7 {[%clk 0:02:10.9]} 16... Kxg7 {[%clk
0:01:42.1]} 17. dxe5 {[%clk 0:02:08.2]} 17... Nd7 {[%clk 0:01:35.4]} 18. f4
{[%clk 0:02:01.6]} 18... gxf4 {[%clk 0:01:34.9]} 19. Bxf4 {[%clk 0:02:01.8]}
19... Qe7 {[%clk 0:01:30.2]} 20. Qh5 {[%clk 0:01:52.8]} 20... Kh8 {[%clk
0:01:27.4]} 21. Bh6 {[%clk 0:01:45.6]} 21... Rf5 {[%clk 0:01:08.6]} 22. Rxf5
{[%clk 0:01:37.6]} 22... exf5 {[%clk 0:01:08.4]} 23. Qxf5 {[%clk 0:01:33.9]}
23... Nxe5 {[%clk 0:00:57.3]} 24. Rf1 {[%clk 0:01:23]} 24... Rg8 {[%clk
0:00:52.1]} 25. Be3 {[%clk 0:01:12.7]} 25... Nc6 {[%clk 0:00:41.9]} 26. Bh6
{[%clk 0:00:51.9]} 26... d4 {[%clk 0:00:38]} 27. Bd5 {[%clk 0:00:43]} 27... dxc3
{[%clk 0:00:11.9]} 28. bxc3 {[%clk 0:00:42.7]} 28... Qc5+ {[%clk 0:00:09.4]} 29.
Kg2 {[%clk 0:00:40]} 29... Qxd5+ {[%clk 0:00:06.9]} 30. Qxd5 {[%clk 0:00:38.8]}
30... Nd8 {[%clk 0:00:07.2]} 31. Qxb7 {[%clk 0:00:31.4]} 31... Nxb7 {[%clk
0:00:08.1]} 32. Rf7 {[%clk 0:00:31.5]} 32... Nc5 {[%clk 0:00:07]} 33. Be3 {[%clk
0:00:27.1]} 33... Re8 {[%clk 0:00:03.6]} 34. Bd4+ {[%clk 0:00:26.3]} 34... Kg8
{[%clk 0:00:04.2]} 35. Rxa7 {[%clk 0:00:22.5]} 35... Re2+ {[%clk 0:00:03.4]} 36.
Kh3 {[%clk 0:00:20.5]} 36... h5 {[%clk 0:00:01.4]} 37. Kh4 {[%clk 0:00:19.2]}
1-0

[Event "*** Titled Tuesday Blitz"]
[Site "Chess.com"]
[Date "2021.02.02"]
[Round "3"]
[White "Angel_Hranitel_37"]
[Black "GM_dmitrij"]
[Result "0-1"]
[WhiteElo "2463"]
[BlackElo "2890"]
[TimeControl "180+1"]
[EndTime "10:31:17 PST"]
[Termination "GM_dmitrij won by checkmate"]

1. d4 {[%clk 0:03:00.9]} 1... Nf6 {[%clk 0:02:54.3]} 2. c4 {[%clk 0:03:01.5]}
2... g6 {[%clk 0:02:52.7]} 3. Nf3 {[%clk 0:03:01.5]} 3... Bg7 {[%clk 0:02:52.1]}
4. g3 {[%clk 0:03:02.2]} 4... O-O {[%clk 0:02:53]} 5. Bg2 {[%clk 0:03:02.8]}
5... Nc6 {[%clk 0:02:51.6]} 6. d5 {[%clk 0:03:00]} 6... Na5 {[%clk 0:02:51.4]}
7. Qd3 {[%clk 0:02:56.7]} 7... d6 {[%clk 0:02:49]} 8. Nc3 {[%clk 0:02:51.4]}
8... c5 {[%clk 0:02:46.6]} 9. Nh4 {[%clk 0:02:48.6]} 9... a6 {[%clk 0:02:44.2]}
10. O-O {[%clk 0:02:47.3]} 10... Ng4 {[%clk 0:02:39.3]} 11. f4 {[%clk
0:02:44.6]} 11... b5 {[%clk 0:02:37.8]} 12. cxb5 {[%clk 0:02:33.6]} 12... axb5
{[%clk 0:02:38.7]} 13. h3 {[%clk 0:02:22.9]} 13... c4 {[%clk 0:02:35.1]} 14. Qf3
{[%clk 0:02:18.7]} 14... Nf6 {[%clk 0:02:32.4]} 15. Nxb5 {[%clk 0:01:41.1]}
15... Qb6+ {[%clk 0:02:29.4]} 16. Qe3 {[%clk 0:01:37.8]} 16... Qxb5 {[%clk
0:02:27.9]} 17. Qxe7 {[%clk 0:01:38.1]} 17... Nxd5 {[%clk 0:02:03.3]} 18. Qxd6
{[%clk 0:01:33]} 18... Bb7 {[%clk 0:02:02]} 19. f5 {[%clk 0:01:15.5]} 19... Rad8
{[%clk 0:01:53.2]} 20. Qa3 {[%clk 0:01:15.2]} 20... c3 {[%clk 0:01:40.7]} 21. f6
{[%clk 0:01:08]} 21... Bxf6 {[%clk 0:01:26]} 22. Bxd5 {[%clk 0:01:03.2]} 22...
Qb6+ {[%clk 0:01:23.4]} 23. Kh2 {[%clk 0:00:52.7]} 23... Rxd5 {[%clk 0:01:14.9]}
24. Bh6 {[%clk 0:00:24.6]} 24... Re8 {[%clk 0:01:11.6]} 25. Rae1 {[%clk
0:00:16.7]} 25... Rd2 {[%clk 0:01:07.6]} 26. Ng2 {[%clk 0:00:11.2]} 26... Nc4
{[%clk 0:00:59.2]} 27. Qa4 {[%clk 0:00:03.4]} 27... Rc8 {[%clk 0:00:44.9]} 28.
b3 {[%clk 0:00:02.3]} 28... Bxg2 {[%clk 0:00:40.4]} 29. Kxg2 {[%clk 0:00:01.6]}
29... Ne5 {[%clk 0:00:29.8]} 30. Qf4 {[%clk 0:00:01.6]} 30... Rd6 {[%clk
0:00:25.6]} 31. Kh1 {[%clk 0:00:02.2]} 31... Re6 {[%clk 0:00:24.1]} 32. Bg5
{[%clk 0:00:02.6]} 32... Bxg5 {[%clk 0:00:23.3]} 33. Qxg5 {[%clk 0:00:03.5]}
33... Qc6+ {[%clk 0:00:23.6]} 34. e4 {[%clk 0:00:03.7]} 34... c2 {[%clk
0:00:22.9]} 35. h4 {[%clk 0:00:03.3]} 35... h5 {[%clk 0:00:22.1]} 36. Kg2 {[%clk
0:00:01.9]} 36... Ng4 {[%clk 0:00:22]} 37. Kh3 {[%clk 0:00:02.2]} 37... Rxe4
{[%clk 0:00:21.2]} 38. Rxe4 {[%clk 0:00:02.2]} 38... Qxe4 {[%clk 0:00:22.1]} 39.
Rf6 {[%clk 0:00:02.2]} 39... Qh1# {[%clk 0:00:21.7]} 0-1